Cogmind - Beta 14 @@@ ROGUE MODE // 2024.09.07 @ 21:36:01 Player: s0lid Result: Destroyed by 8R-AWN with 8R-AWN's Boregun Performance ------------- Evolutions (0) 0 Regions Visited (3) 600 Robots Destroyed (14) 70 Value Destroyed (249) 249 Prototype IDs (0) 0 Alien Tech Used (0) 0 Bonus (32) 32 TOTAL SCORE: 951 Bonus ------- Follower Combat Kills 67 Friendly Fire -35 Cogmind --------- Core Integrity 0/250 Matter 291/300 Energy 246/250 System Corruption 0% Temperature Cool (0) Movement Hovering (260) Ox4 Location -10/Exiles Parts ------- > --- POWER (1) -------- Ion Engine > --- PROPULSION (2) --- Gravmag Array > --- UTILITY (2) ------ Huge Storage Unit Signal Interpreter > --- WEAPON (2) ------- (None) > --- INVENTORY (25) --- Nuclear Core Nuclear Core Fission Core Aluminum Leg Aluminum Leg Wheel Compact Wheel Flight Unit Flight Unit Improved Heat Sink Small Storage Unit Large Matter Pod (150) Experimental Sensor Array Improved Terrain Scanner Seismic Detector ECM Suite Light Armor Plating EX Chip 1 EX Chip 1 Medium Laser Light Assault Rifle Datajack Peak State ------------ > --- POWER ------------ Ion Engine > --- PROPULSION ------- Gravmag Array > --- UTILITY ---------- Huge Storage Unit Signal Interpreter > --- WEAPON ----------- Particle Gun > --- INVENTORY -------- Nuclear Core Nuclear Core Fission Core Aluminum Leg Aluminum Leg Wheel Compact Wheel Flight Unit Flight Unit Improved Heat Sink Small Storage Unit Large Matter Pod Experimental Sensor Array Improved Terrain Scanner Seismic Detector ECM Suite Light Armor Plating EX Chip 1 EX Chip 1 Medium Laser Light Assault Rifle Datajack [Rating: 19] Favorites ----------- Power Ion Engine Engine Ion Engine Propulsion Wheel Wheel Wheel Hover Unit Hover Unit Utility Signal Interpreter Device Improved Terrain Scanner Storage Small Storage Unit Processor Signal Interpreter Weapon Assault Rifle Energy Gun Medium Laser Ballistic Gun Assault Rifle Build | -11 -10 -10 -10 ------- Run | Yrd Mat Min Exi Slots Evolved . | . . . . Power . | . . . . Propulsion . | . . . . Utility . | . . . . Weapon . | . . . . Parts Attached 33 | 6 6 19 2 Power 6 | 1 2 2 1 Engine 6 | 1 2 2 1 Core . | . . . . Reactor . | . . . . Propulsion 13 | 2 2 8 1 Treads . | . . . . Leg . | . . . . Wheel 8 | 2 . 6 . Hover 5 | . 2 2 1 Flight . | . . . . Utility 6 | 1 2 3 . Device 2 | . 1 1 . Storage 2 | 1 . 1 . Processor 2 | . 1 1 . Hackware . | . . . . Protection . | . . . . Artifact . | . . . . Weapon 8 | 2 . 6 . Energy Gun 4 | 1 . 3 . Energy Cannon . | . . . . Ballistic Gun 4 | 1 . 3 . Ballistic Cannon . | . . . . Launcher . | . . . . Special Weapon . | . . . . Impact Weapon . | . . . . Slashing Weapon . | . . . . Piercing Weapon . | . . . . Special Melee Weapon . | . . . . Unidentified Prototypes . | . . . . Parts Lost 7 | . . 2 5 Power 1 | . . . 1 Propulsion 3 | . . 1 2 Utility 1 | . . 1 . Weapon 2 | . . . 2 Highest Loss Streak 5 | . . 2 5 To Critical Strikes 1 | . . . 1 Average Slot Usage (%) 96 | . 92 96 95 Engine 14 | . 14 14 14 Wheel 21 | . 23 20 25 Hover 5 | . 4 5 1 Device 2 | . 3 2 . Storage 14 | . 14 14 14 Processor 9 | . 3 10 14 Energy Gun 13 | . 14 14 13 Ballistic Gun 13 | . 14 14 13 Peak Build Rating 19 | 6 7 11 19 Average Rating 8 | 4 6 8 11 On Entrance 6 | . 6 7 11 Naked Turns . | . . . . Heaviest Build 90 | 14 15 90 90 Greatest Support 26 | 20 20 26 26 Greatest Overweight (x) 5 | . . 4 5 Average Overweight (x) 1 | . . 1 3 Largest Inventory Capacity 25 | 8 8 25 25 Average Capacity 16 | 7 8 17 25 Most Carried 25 | 4 8 19 25 Average Carried 12 | 1 7 12 21 Final Capacity 25 | 8 8 25 25 Final Carried 22 | 4 8 19 22 Class Distribution -------------------- 94% | Mutant 5% | Scavenger-Mutant Dominant Class ---------------- Mutant | -10/Materials Mutant | -10/Mines Mutant | -10/Exiles Resources | -11 -10 -10 -10 ----------- Run | Yrd Mat Min Exi Matter Collected 735 | 255 19 461 . Remotely . | . . . . Salvage Created 444 | . 108 300 36 Parts 45 | . 9 26 10 Haulers Intercepted . | . . . . Recyclers Shooed . | . . . . Parts Field Recycled . | . . . . Retrieved Matter . | . . . . Parts Self-Destructed . | . . . . Prevented . | . . . . Kills | -11 -10 -10 -10 ------- Run | Yrd Mat Min Exi Combat Hostiles Destroyed 10 | . 2 7 1 Guns 10 | . 2 7 1 Classes Destroyed 6 | . 2 3 1 Tunneler 2 | . . 2 . Recycler 1 | . . 1 . Watcher 1 | . 1 . . Swarmer 5 | . . 5 . Grunt 4 | . 2 2 . Assembled 1 | . . . 1 Best Kill Streak 3 | . 1 3 2 Combat Bots Only 3 | . 1 3 1 Max Kills in Single Turn 1 | . 1 1 1 Gunslinging . | . . . . Exploded . | . . . . Melee . | . . . . Uniques/NPCs Destroyed 1 | . . . 1 EX-HEX (-10/Exiles) Combat | -11 -10 -10 -10 -------- Run | Yrd Mat Min Exi Hostile Shots Fired 107 | . 12 42 53 Missed 40 | . 3 11 26 Damage Taken 890 | . 131 326 433 Core 272 | . 45 82 145 Absorbed by Shields . | . . . . Core Remaining (%) 100 | 100 . . . Volleys Fired 43 | . 9 30 4 Largest 2 | . 2 2 2 Hottest 85 | . 70 70 85 Shots Fired 86 | . 18 60 8 Gun 86 | . 18 60 8 Cannon . | . . . . Launcher . | . . . . Special . | . . . . Kinetic 43 | . 9 30 4 Thermal 43 | . 9 30 4 Explosive . | . . . . Electromagnetic . | . . . . Robot Hit Streak 10 | . 6 6 10 Robot Miss Streak 4 | . 3 4 1 Penetration Max . | . . . . Secondary Targets 3 | . . 2 1 Max Gunslinging Chain 1 | . . 1 1 Shots Hit Robots 56 | . 11 38 7 Core Hits 30 | . 6 20 4 Critical Kills . | . . . . Critical Parts Destroyed . | . . . . Critical Strikes 4 | . . 4 . Burn 4 | . . 4 . Melee Attacks . | . . . . Impact . | . . . . Slashing . | . . . . Piercing . | . . . . Sneak Attacks . | . . . . Combat Hostiles . | . . . . Follow-up Attacks . | . . . . Damage Inflicted 667 | . 136 434 97 Guns 667 | . 136 434 97 Cannons . | . . . . Explosions . | . . . . Melee . | . . . . Ramming . | . . . . Kinetic 265 | . 36 176 53 Thermal 402 | . 100 258 44 Explosive . | . . . . Electromagnetic . | . . . . Impact . | . . . . Slashing . | . . . . Piercing . | . . . . Highest Corruption . | . . . . Average Corruption . | . . . . Corruption Purged . | . . . . Corruption Blocked . | . . . . Overload Shots . | . . . . Overflow Damage . | . . . . Projectiles . | . . . . Explosions . | . . . . Melee . | . . . . Knockbacks . | . . . . Impact . | . . . . Kinetic . | . . . . Secondary . | . . . . Self-Inflicted Damage . | . . . . Shots . | . . . . Rammed . | . . . . Targets Rammed . | . . . . Kicked . | . . . . Crushed . | . . . . Highest Temperature 87 | . 45 87 48 Average Temperature 29 | . 17 33 19 Received Heat Transfer 165 | . 72 84 9 Siege Activations . | . . . . Robots Corrupted . | . . . . Combat Hostiles . | . . . . Parts Fried . | . . . . Impact Corruptions . | . . . . Robots Melted . | . . . . Combat Hostiles . | . . . . Parts Melted 4 | . 1 . 3 Heat Transferred 1480 | . 296 1073 111 Parts Sabotaged . | . . . . Parts Stolen . | . . . . Parts Stripped . | . . . . Power Chain Reactions . | . . . . Alert | -11 -10 -10 -10 ------- Run | Yrd Mat Min Exi Peak Influence 225 | . 152 225 . Initial 58 | . . 58 . Average 69 | . 62 75 . Maximum Alert Level 1 | . . 1 . Low Security (%) 93 | 100 100 91 . Level 1 6 | . . 8 . Level 2 . | . . . . Level 3 . | . . . . Level 4 . | . . . . Level 5 . | . . . . High Security . | . . . . Max Security . | . . . . Squads Dispatched 1 | . 1 . . Investigation . | . . . . Extermination . | . . . . Reinforcement 1 | . 1 . . Assault . | . . . . Garrison . | . . . . Intercept . | . . . . Searches Triggered . | . . . . Construction Impeded . | . . . . Haulers Reinforced . | . . . . Active Scanning Responses . | . . . . Cargo Convoy Interrupts . | . . . . Stealth | -11 -10 -10 -10 --------- Run | Yrd Mat Min Exi Distress Signals . | . . . . Communications Jammed . | . . . . Distress Signals . | . . . . Times Spotted 27 | . 9 10 8 Peak Tracking Total 9 | . 5 3 9 Tactical Retreats . | . . . . Traps | -11 -10 -10 -10 ------- Run | Yrd Mat Min Exi Traps Triggered . | . . . . Indirectly . | . . . . Trap Hack Attempts . | . . . . Triggered . | . . . . Disarmed . | . . . . Reprogrammed . | . . . . Reused . | . . . . Traps Extracted . | . . . . Installed . | . . . . Triggered . | . . . . Machines | -11 -10 -10 -10 ---------- Run | Yrd Mat Min Exi Machines Disabled 1 | . . . 1 Max in Single Turn . | . . . . Machines Repaired . | . . . . Machines Dismantled . | . . . . Machines Sabotaged . | . . . . Overloaded Fab Kills . | . . . . Hacking | -11 -10 -10 -10 --------- Run | Yrd Mat Min Exi Machines Accessed 4 | . 4 . . Terminals 4 | . 4 . . Fabricators . | . . . . Repair Stations . | . . . . Recycling Units . | . . . . Scanalyzers . | . . . . Garrison Access . | . . . . Total Hacks 12 | . 12 . . Successful 7 | . 7 . . Failed 5 | . 5 . . Catastrophic . | . . . . Database Lockouts . | . . . . Manual 6 | . 6 . . Terminals 12 | . 12 . . Fabricators . | . . . . Repair Stations . | . . . . Recycling Units . | . . . . Scanalyzers . | . . . . Garrison Access . | . . . . Terminal Hacks 2 | . 2 . . Branch Access Points 1 | . 1 . . Locate Traps 1 | . 1 . . Fabricator Hacks . | . . . . Repair Station Hacks . | . . . . Recycling Unit Hacks . | . . . . Scanalyzer . | . . . . Garrison Access Hacks . | . . . . Unauthorized Hacks 5 | . 5 . . Terminals 5 | . 5 . . Botnet 4 | . 4 . . Operators 1 | . 1 . . Fabricators . | . . . . Repair Stations . | . . . . Recycling Units . | . . . . Scanalyzers . | . . . . Garrison Access . | . . . . Data Cores Recovered . | . . . . Used . | . . . . Hacking Detections 4 | . 4 . . Full Trace Events . | . . . . Feedback Events . | . . . . Feedback Blocked . | . . . . Robot Schematics Acquired . | . . . . Robots Built . | . . . . Authchips . | . . . . Time . | . . . . Total Robot Build Rating . | . . . . Part Schematics Acquired . | . . . . Parts Built . | . . . . Authchips . | . . . . Time . | . . . . Total Part Build Rating . | . . . . Parts Repaired . | . . . . Time . | . . . . Parts Recycled . | . . . . Recycled Matter . | . . . . Retrieved Matter . | . . . . Retrieved Components . | . . . . Parts Scanalyzed . | . . . . Part Schematics Acquired . | . . . . Parts Damaged . | . . . . Bothacking | -11 -10 -10 -10 ------------ Run | Yrd Mat Min Exi Used RIF Installer . | . . . . Robots Hacked . | . . . . Non-combat . | . . . . Combat . | . . . . Robot Hacks Applied . | . . . . Relay Couplers Released . | . . . . Fabnet Peak Effective % . | . . . . Robots Rewired . | . . . . Allies Hacked . | . . . . Hacks Repelled . | . . . . Allies | -11 -10 -10 -10 -------- Run | Yrd Mat Min Exi Total Allies 5 | . . 5 . Largest Group 4 | . . 4 4 Highest-Rated Group 71 | . . 71 71 Highest-Rated Ally 31 | . . 31 31 Total Orders . | . . . . Ally Attacks 33 | . . 12 21 Total Damage 366 | . . 184 182 Kills 6 | . . 3 3 Allies Corrupted . | . . . . Allies Melted . | . . . . Intel | -11 -10 -10 -10 ------- Run | Yrd Mat Min Exi Robot Analysis Total . | . . . . Derelict Logs Recovered 2 | . . 2 . Drone Launches . | . . . . Drone Recoveries . | . . . . Exploration | -11 -10 -10 -10 ------------- Run | Yrd Mat Min Exi Turns Passed 1459 | 54 246 1026 133 Spaces Moved 1159 | 53 244 785 77 Core 4 | 4 . . . Treads . | . . . . Legs . | . . . . Wheels 850 | 49 183 542 76 Hover 305 | . 61 243 1 Flight . | . . . . Fastest Speed 50 | 50 56 56 135 Average Speed 104 | 77 74 112 140 Slowest Speed 260 | 80 80 140 260 Overloaded Moves . | . . . . Propulsion Burnouts . | . . . . Robots Hopped . | . . . . Cave-ins Triggered . | . . . . Exploration Rate (%) 46 | 3 59 99 26 Regions Visited 3 Branch Regions 2 Pre-discovered Areas . | . . . . Known Exits Taken 2 | . 1 1 . Unknown Exits Taken 1 | 1 . . . Scrap Searched 2 | . . 2 . Spaces Dug . | . . . . Terrain Destroyed . | . . . . Melee . | . . . . Projectile . | . . . . AOE . | . . . . Terrain Rammed . | . . . . Walls Destroyed . | . . . . Machines Disabled . | . . . . Actions | -11 -10 -10 -10 --------- Run | Yrd Mat Min Exi Total 1321 | 62 293 870 96 Wait 27 | . 12 10 5 Move 1156 | 52 243 784 77 Hop . | . . . . Pick Up 38 | 4 13 15 6 Fast Attach 11 | 6 2 3 . Attach 4 | . . 2 2 Detach 1 | . . 1 . Swap 18 | . 4 14 . Drop 22 | . 10 11 1 Fire 43 | . 9 30 4 Melee . | . . . . Ram . | . . . . Kick . | . . . . Crush . | . . . . Escape Stasis . | . . . . Rewire 1 | . . . 1 Trap . | . . . . Miscellaneous . | . . . . Route ------- -11/Scrapyard -10/Materials (discovered 2 exits: *Mat / *Min) -10/Mines (discovered 3 exits: *Mat x2 / *Exi) -10/Exiles History --------- Turn | Location | Event 10 | -11/Scrapyard | Discovered new exit (range 15) 55 | -11/Scrapyard | Entered Materials 73 | -10/Materials | Identified exit to Mines 172 | -10/Materials | Discovered new exit (range 15) 301 | -10/Materials | Entered Mines 305 | -10/Mines | Build established: Mutant 342 | -10/Mines | Learned Materials stockpile data 428 | -10/Mines | Learned Materials security intel 564 | -10/Mines | Deemed a non-threat by the Exiles lab entrance 564 | -10/Mines | Discovered new exit (range 5) 570 | -10/Mines | Identified exit to Exiles 678 | -10/Mines | Discovered new exit (range 8) 682 | -10/Mines | Identified exit to Materials 755 | -10/Mines | Assisted by bots powering up and referring to "LRC-V3" 773 | -10/Mines | Found a damaged Exp. Sensor Array with a note attached 776 | -10/Mines | Found Prototype Device 973 | -10/Mines | Core integrity fell below 50% 988 | -10/Mines | Discovered exit to Materials (range 9) 1327 | -10/Mines | Entered Exiles 1327 | -10/Exiles | Accompanied by 4 allies 1357 | -10/Exiles | Led the pair of lost Derelicts to a safe place 1369 | -10/Exiles | Met 8R-AWN 1391 | -10/Exiles | Met EX-HEX 1420 | -10/Exiles | Attacked by the Exiles 1427 | -10/Exiles | Destroyed EX-HEX 1450 | -10/Exiles | Core integrity fell below 20% 1460 | -10/Exiles | Destroyed by 8R-AWN with 8R-AWN's Boregun Last Messages --------------- 01439_ HV Slug penetrates as-90633. 01439_ as-90633 destroyed. 01439_ Acquired EX Chip 1. 01440_ Dropped Datajack. 01440_ as-29785 destroyed. 01442_ Penetrated by HV Slug. 01442_ HV Slug penetrates Assembled Analyzer. 01442_ HV Slug penetrates Machine. 01444_ Wheel destroyed. 01444_ Penetrated by HV Slug. 01451_ HV Slug penetrates Machine. 01451_ Penetrated by HV Slug. 01453_ HV Slug penetrates Machine. 01453_ Penetrated by HV Slug. 01456_ Critical hit (Destroy). 01456_ Assault Rifle destroyed. 01458_ Penetrated by HV Slug. 01458_ Com. Wheel destroyed. 01459_ Particle Gun destroyed. 01460_ Penetrated by HV Slug. Map ----- +----------------------------------------------------+ | ?????????????????????????????????????????????????? | | ?????????????????????????????????????????????????? | | ?????????????????????????????????????????????????? | | ?????????????????????????????????????????????????? | | ?????????????????????????????????????????????????? | | ?????????????????????????????????????????????????? | | ?????????????????????????????????????????????????? | | ?????????????????????????????????????????????????? | | ?????????????????????????????????????????????????? | | ?????????????????????????????????????????????????? | | ?????????????????????????????????????????????????? | | ?????????????????????????????????????????????????? | | ?????????????????????????????????????????????????? | | ???????????????? ???????????????????????????????? | | ???????????????" ???????????????????????????????? | | ??????????????"" ??????????????????????????????? | | ??????????????" ?????????????????????????????? | | ??????????????" #????????????????????????????? | | ?????????????"" #????###########????????????? | | ???????????? " #####" "" "" "##???????????? | | ???????????? " "" ""##??????????? | | ??????????? #??????????? | | ??????????? """#??????????? | | ?????????? "a"#??????????? | | ?????????? "##?????????# | | ?????????? @ "###???????# | | ???????????????""" !!/ !% ""#??????## | | ???????????????##""" !!%% %* "#????### | | ????????????????##### !!! =% ##???# | | ????????????????????##""" % ##?## | | ?????????????????????#" a% "## | | ?????????????????????#"" | | ????????????????????#"""" % | | ???????????????????"" "" | | ??????????????????" #"""# | | ??????????????????? a ###### | | ??????????????????? ##????? | | ??????????????????? " ##?????? | | ????????????????????"" """ % "#??????? | | ?????????????????????"" " " ""#" "##??????? | | ??????????????????????##""" """##"""""""##???????? | | ???????????????????????###"""???#########????????? | | ?????????????????????????##??????????????????????? | | ?????????????????????????????????????????????????? | | ?????????????????????????????????????????????????? | | ?????????????????????????????????????????????????? | | ?????????????????????????????????????????????????? | | ?????????????????????????????????????????????????? | | ?????????????????????????????????????????????????? | | ?????????????????????????????????????????????????? | +----------------------------------------------------+ Best States ------------- Heat Dissipation 35 Energy Generation 10 Energy Capacity 250 Matter Stores 300 Matter Capacity 300 Sight Range 16 Terrain Scan Range 16 Terrain Scan Density 10 Evasion (%) 53 Item Schematics ----------------- None Robot Schematics ------------------ None Fabricated ------------ Nothing Alien Tech Used ----------------- None Achievements -------------- None Challenges ------------ None Game ------ Seed PhysicsSwarmTube Manual? 0 Play Time 00:25:44 Cumulative 188.1 hours Start 2024.09.07 @ 16:06:45 End 2024.09.07 @ 21:36:01 Sessions 2 Manual Loads 0 Difficulty Rogue Special Mode None Game No. 191 Rogue 191 Adventurer 0 Explorer 0 Win Type - Total 0 Types 0/0/0/0/0/0/0/0/0 Lore% 20 Gallery% 57 Achievement% 42 Wizard Run 0 Options --------- Layout 0 ASCII 0 Keyboard 1 Movement Vi Keybinds 0 Fullscreen 1 Font 24/Smallcaps Map View 76x50 Zoom Use 0% Tactical HUD 1 Map Filters NONE Filters NONE Steam 1 RUN: 1d3cdc4b-ee66-4436-bf1a-9c4869d5c172